Workbook

Sheet Start

Sheet Dimen
E1: Fox Ess | K1: Zonnepaneel
E2: Gele velden invullen aub | K2: Watt peak: | L2: 375 | M2: Wp
E3: Dit is een indicatietool | K3: Vmmp: | L3: 21 | M3: max. spanning
E4: Steeds technische fiche raadplegen | K4: Vmpp = +/- 80% Voc (indien Vmpp niet gekend is)
E5: [max120%] | K5: Aantal panelen
B6: Omvormer | D6: Aantal Mpp | E6: Max DC Input Power | F6: Start up Voltage | G6: Min/Max Input Vdc/Mpp | K6: Totaal | L6: Min | M6: Min Mpp | O6: Max Mpp
B8: S 700 | D8: 1 | E8: 1050 | F8: 60 | G8: 50 | H8: - | I8: 500 | K8: =INT(E8/L2) -> 2 | L8: =F8/L3 -> 2.857142857 | M8: =L8 -> 2.857142857 | N8: - | O8: =K8/D8 -> 2
B9: S 1000 | D9: 1 | E9: 1500 | F9: 60 | G9: 50 | H9: - | I9: 500 | K9: =INT(E9/L2) -> 4 | L9: =F9/L3 -> 2.857142857 | M9: =L9 -> 2.857142857 | N9: - | O9: =K9/D9 -> 4
B10: S 1500 | D10: 1 | E10: 2250 | F10: 60 | G10: 50 | H10: - | I10: 500 | K10: =INT(E10/L2) -> 6 | L10: =F10/L3 -> 2.857142857 | M10: 2.857142857 | N10: - | O10: 6
B11: S 2000 | D11: 1 | E11: 3000 | F11: 60 | G11: 50 | H11: - | I11: 500 | K11: =INT(E11/L2) -> 8 | L11: =F11/L3 -> 2.857142857 | M11: 2.857142857 | N11: - | O11: 8
B12: S 2500 | D12: 1 | E12: 3750 | F12: 60 | G12: 50 | H12: - | I12: 500 | K12: =INT(E12/L2) -> 10 | L12: =F12/L3 -> 2.857142857 | M12: 2.857142857 | N12: - | O12: 10
B13: S 3000 | D13: 1 | E13: 4500 | F13: 60 | G13: 50 | H13: - | I13: 500 | K13: =INT(E13/L2) -> 12 | L13: =F13/L3 -> 2.857142857 | M13: 2.857142857 | N13: - | O13: 12
B14: S 3300 | D14: 1 | E14: 4950 | F14: 60 | G14: 50 | H14: - | I14: 500 | K14: =INT(E14/L2) -> 13 | L14: =F14/L3 -> 2.857142857 | M14: 2.857142857 | N14: - | O14: 13
B17: Mono
B18: F 3000 | D18: 2 | E18: 4500 | F18: 120 | G18: 80 | H18: - | I18: 550 | K18: =INT(E18/L2) -> 12 | L18: =F18/L3 -> 5.714285714 | M18: =L18 -> 5.714285714 | N18: - | O18: 6
B19: F 3600 | D19: 2 | E19: 5400 | F19: 120 | G19: 80 | H19: - | I19: 550 | K19: =INT(E19/L2) -> 14 | L19: =F19/L3 -> 5.714285714 | M19: =L19 -> 5.714285714 | N19: - | O19: 7
B20: F 4600 | D20: 2 | E20: 6900 | F20: 120 | G20: 80 | H20: - | I20: 550 | K20: =INT(E20/L2) -> 18 | L20: =F20/L3 -> 5.714285714 | M20: 5.714285714 | N20: - | O20: 9
B21: F 5000 | D21: 2 | E21: 7500 | F21: 120 | G21: 80 | H21: - | I21: 550 | K21: =INT(E21/L2) -> 20 | L21: =F21/L3 -> 5.714285714 | M21: 5.714285714 | N21: - | O21: 10
B23: 3-Fase
B24: T 3-G3 | D24: 2 | E24: 4500 | F24: 140 | G24: 140 | H24: - | I24: 850 | K24: =INT(E24/L2) -> 12 | L24: =F24/L3 -> 6.666666667 | M24: =G24/L3 -> 6.666666667 | N24: - | O24: =K24/D24 -> 6
B25: T 4-G3 | D25: 2 | E25: 6000 | F25: 140 | G25: 140 | H25: - | I25: 850 | K25: =INT(E25/L2) -> 16 | L25: =F25/L3 -> 6.666666667 | M25: =G25/L3 -> 6.666666667 | N25: - | O25: =K25/D25 -> 8
B26: T 5-G3 | D26: 2 | E26: 7500 | F26: 140 | G26: 140 | H26: - | I26: 850 | K26: =INT(E26/L2) -> 20 | L26: =F26/L3 -> 6.666666667 | M26: =G26/L3 -> 6.666666667 | N26: - | O26: 10
B27: T 6-G3 | D27: 2 | E27: 9000 | F27: 140 | G27: 140 | H27: - | I27: 850 | K27: =INT(E27/L2) -> 24 | L27: =F27/L3 -> 6.666666667 | M27: =G27/L3 -> 6.666666667 | N27: - | O27: 12
B28: T 8-G3 | D28: 2 | E28: 12000 | F28: 140 | G28: 140 | H28: - | I28: 850 | K28: =INT(E28/L2) -> 32 | L28: =F28/L3 -> 6.666666667 | M28: =G28/L3 -> 6.666666667 | N28: - | O28: 16
B29: T 11-G3 | D29: 2 | E29: 15000 | F29: 140 | G29: 140 | H29: - | I29: 850 | K29: =INT(E29/L2) -> 40 | L29: =F29/L3 -> 6.666666667 | M29: =G29/L3 -> 6.666666667 | N29: - | O29: 20
B30: T 12-G3 | D30: 2 | E30: 18000 | F30: 140 | G30: 140 | H30: - | I30: 850 | K30: =INT(E30/L2) -> 48 | L30: =F30/L3 -> 6.666666667 | M30: =G30/L3 -> 6.666666667 | N30: - | O30: 24
B31: T 15-G3 | D31: 2 | E31: 22500 | F31: 140 | G31: 140 | H31: - | I31: 850 | K31: =INT(E31/L2) -> 60 | L31: =F31/L3 -> 6.666666667 | M31: =G31/L3 -> 6.666666667 | N31: - | O31: 30
B32: T 17-G3 | D32: 2 | E32: 25500 | F32: 140 | G32: 140 | H32: - | I32: 850 | K32: =INT(E32/L2) -> 68 | L32: =F32/L3 -> 6.666666667 | M32: =G32/L3 -> 6.666666667 | N32: - | O32: 34
B33: T 20-G3 | D33: 2 | E33: 30000 | F33: 140 | G33: 140 | H33: - | I33: 850 | K33: =INT(E33/L2) -> 80 | L33: =F33/L3 -> 6.666666667 | M33: =G33/L3 -> 6.666666667 | N33: - | O33: 40
B34: T 25-G3 | D34: 2 | E34: 37500 | F34: 140 | G34: 140 | H34: - | I34: 850 | K34: =INT(E34/L2) -> 100 | L34: =F34/L3 -> 6.666666667 | M34: =G34/L3 -> 6.666666667 | N34: - | O34: 50
B36: H1 Hybride Mono / S
B37: H1 3,0-E | D37: 2 | E37: 3900 | F37: 80 | G37: 80 | H37: - | I37: 550 | K37: =INT(E37/L2) -> 10 | L37: =F37/L3 -> 3.80952381 | M37: =G37/L3 -> 3.80952381 | N37: - | O37: 5
B38: H1 3,7-E | D38: 2 | E38: 4680 | F38: 80 | G38: 80 | H38: - | I38: 550 | K38: =INT(E38/L2) -> 12 | L38: =F38/L3 -> 3.80952381 | M38: =G38/L3 -> 3.80952381 | N38: - | O38: 6
B39: H1 4,6-E | D39: 2 | E39: 5980 | F39: 80 | G39: 80 | H39: - | I39: 550 | K39: =INT(E39/L2) -> 15 | L39: =F39/L3 -> 3.80952381 | M39: =G39/L3 -> 3.80952381 | N39: - | O39: 7.5
B40: H1 5,0-E | D40: 2 | E40: 6500 | F40: 80 | G40: 80 | H40: - | I40: 550 | K40: =INT(E40/L2) -> 17 | L40: =F40/L3 -> 3.80952381 | M40: =G40/L3 -> 3.80952381 | N40: - | O40: 8.5
B42: H3 Hybride 3-Fase / T
B43: H3 5,0-E | D43: 2 | E43: 7500 | F43: 210 | G43: 210 | H43: - | I43: 800 | K43: =INT(E43/L2) -> 20 | L43: =F43/L3 -> 10 | M43: =G43/L3 -> 10 | N43: - | O43: 10
B44: H3 6,0-E | D44: 2 | E44: 9000 | F44: 250 | G44: 250 | H44: - | I44: 800 | K44: =INT(E44/L2) -> 24 | L44: =F44/L3 -> 11.9047619 | M44: =G44/L3 -> 11.9047619 | N44: - | O44: 12
B45: H3 8,0-E | D45: 2 | E45: 10400 | F45: 240 | G45: 240 | H45: - | I45: 800 | K45: =INT(E45/L2) -> 27 | L45: =F45/L3 -> 11.42857143 | M45: =G45/L3 -> 11.42857143 | N45: - | O45: 13.5
B46: H3 11,0-E | D46: 2 | E46: 13000 | F46: 280 | G46: 280 | H46: - | I46: 800 | K46: =INT(E46/L2) -> 34 | L46: =F46/L3 -> 13.33333333 | M46: =G46/L3 -> 13.33333333 | N46: - | O46: 17
B47: H3 12,0-E | D47: 2 | E47: 15000 | F47: 320 | G47: 320 | H47: - | I47: 800 | K47: =INT(E47/L2) -> 40 | L47: =F47/L3 -> 15.23809524 | M47: =G47/L3 -> 15.23809524 | N47: - | O47: 20
B49: AIO-H1 All-in one Mono / S
B50: AIO-H1-3.0 | D50: 2 | E50: 3900 | F50: 80 | G50: 80 | H50: - | I50: 550 | K50: =INT(E50/L2) -> 10 | L50: =F50/L3 -> 3.80952381 | M50: =G50/L3 -> 3.80952381 | N50: - | O50: 5
B51: AIO-H1-3.7 | D51: 2 | E51: 4680 | F51: 80 | G51: 80 | H51: - | I51: 550 | K51: =INT(E51/L2) -> 12 | L51: =F51/L3 -> 3.80952381 | M51: =G51/L3 -> 3.80952381 | N51: - | O51: 6
B52: AIO-H1-4.6-E | D52: 2 | E52: 5980 | F52: 80 | G52: 80 | H52: - | I52: 550 | K52: =INT(E52/L2) -> 15 | L52: =F52/L3 -> 3.80952381 | M52: =G52/L3 -> 3.80952381 | N52: - | O52: 7.5
B53: AIO-H1-5.0-E | D53: 2 | E53: 6500 | F53: 80 | G53: 80 | H53: - | I53: 550 | K53: =INT(E53/L2) -> 17 | L53: =F53/L3 -> 3.80952381 | M53: =G53/L3 -> 3.80952381 | N53: - | O53: 8.5
B55: AIO-H3 All-in one 3-Fase / T
B56: AIO-H3-5.0 | D56: 2 | E56: 6000 | F56: 180 | G56: 180 | I56: 950 | K56: =INT(E56/L2) -> 16 | L56: =F56/L3 -> 8.571428571 | M56: =G56/L3 -> 8.571428571 | N56: - | O56: 8
B57: AIO-H3-6.0 | D57: 2 | E57: 8000 | F57: 180 | G57: 180 | I57: 950 | K57: =INT(E57/L2) -> 21 | L57: =F57/L3 -> 8.571428571 | M57: =G57/L3 -> 8.571428571 | N57: - | O57: 10.5
B58: AIO-H3-8.0 | D58: 2 | E58: 10000 | F58: 180 | G58: 180 | I58: 950 | K58: =INT(E58/L2) -> 26 | L58: =F58/L3 -> 8.571428571 | M58: =G58/L3 -> 8.571428571 | N58: - | O58: 13

Sheet omv
C2: Omvormer/

Sheet omv 1
C2: Omvormer/mono fasig
C16: 1 Tracker | E16: artikel nr | G16: Incl | I16: 2 Trackers
C18: S700 | E18: A0073056 | I18: F3000-G2 | K18: A0074927 | M18: WIFI
C19: S700 | G19: WIFI | I19: F3600-G2 | K19: A0074928 | M19: WIFI
C20: S1000 | E20: A0073058 | I20: F4600-G2 | K20: A0075255 | M20: WIFI
C21: S1000 | G21: WIFI | I21: F5000-G2 | K21: A0075254 | M21: WIFI
C22: S1500 | E22: A0073059
C23: S1500 | G23: WIFI
C24: S2000 | E24: A0073061
C25: S2000 | G25: WIFI
C26: S2500 | E26: A0072968
C27: S2500 | G27: WIFI
C28: S3000 | E28: A0072969
C29: S3000 | G29: WIFI

Sheet omv 3
C2: Omvormer/drie fasig
C15: < 10Kw | E15: artikel nr | G15: Incl | I15: > 10Kw
C16: T3-G3 | E16: A0073067 | G16: WIFI | I16: T11-G3 | K16: A0073072 | M16: WIFI
C17: T4-G3 | E17: A0073068 | G17: WIFI | I17: T12-G3 | K17: A0073073 | M17: WIFI
C18: T5-G3 | E18: A0073069 | G18: WIFI | I18: T15-G3 | K18: A0073074 | M18: WIFI
C19: T6-G3 | E19: A0073070 | G19: WIFI | I19: T17-G3 | K19: A0073075 | M19: WIFI
C20: T8-G3 | E20: A0073071 | G20: WIFI | I20: T20-G3 | K20: A0073076 | M20: WIFI
I21: T25-G3 | K21: A0073077 | M21: WIFI

Sheet hyb
C2: Hybride omvormer/

Sheet Hyb1
C2: Hybride omvormer/mono fase/

Sheet hyb1mod
C2: Hybride omvormer/mono-fase/module batterijen
L4: BMS BOX | O4: HV2600
C12: Omvormer | E12: Artikel | G12: Incl | I12: optie | K12: kWh | L12: Batterij | N12: aantal | O12: Artikel | P12: aantal | Q12: Bracket set | S12: aantal | T12: Extended DC Cable set
T13: For second rack
C14: H1-3.0-E | E14: A0073149 | G14: CT meetklem | I14: LAN | K14: 5.2 | L14: BMS BOX HV | N14: 1 | O14: A0072821 | Q14: incl
G15: WIFI | I15: A0070788 | L15: 2*HV2600 | N15: 2 | O15: A0070783 | P15: 2 | Q15: A0072822
K16: 7.8 | L16: BMS BOX HV | N16: 1 | O16: A0072821 | Q16: incl
L17: 3*HV2600 | N17: 3 | O17: A0070783 | P17: 3 | Q17: A0072822
K18: 10.4 | L18: BMS BOX HV | N18: 1 | O18: A0072821 | Q18: incl
L19: 4*HV2600 | N19: 4 | O19: A0070783 | P19: 4 | Q19: A0072822
K20: 13 | L20: BMS BOX HV | N20: 1 | O20: A0072821 | Q20: incl
L21: 5*HV2600 | N21: 5 | O21: A0070783 | P21: 5 | Q21: A0072822 | S21: 1 | T21: A0074727
K22: 15.6 | L22: BMS BOX HV | N22: 1 | O22: A0072821 | Q22: incl
L23: 6*HV2600 | N23: 6 | O23: A0070783 | P23: 6 | Q23: A0072822 | S23: 1 | T23: A0074727
K24: 18.2 | L24: BMS BOX HV | N24: 1 | O24: A0072821 | Q24: incl
L25: 7*HV2600 | N25: 7 | O25: A0070783 | P25: 7 | Q25: A0072822 | S25: 1 | T25: A0074727
K26: 20.8 | L26: BMS BOX HV | N26: 1 | O26: A0072821 | Q26: incl
L27: 8*HV2600 | N27: 8 | O27: A0070783 | P27: 8 | Q27: A0072822 | S27: 1 | T27: A0074727
C29: H1-3.7-E | E29: A0073150 | G29: CT meetklem | I29: LAN | K29: 5.2 | L29: BMS BOX HV | N29: 1 | O29: A0072821 | Q29: incl
G30: WIFI | I30: A0070788 | L30: 2*HV2600 | N30: 2 | O30: A0070783 | P30: 2 | Q30: A0072822
K31: 7.8 | L31: BMS BOX HV | N31: 1 | O31: A0072821 | Q31: incl
L32: 3*HV2600 | N32: 3 | O32: A0070783 | P32: 3 | Q32: A0072822
K33: 10.4 | L33: BMS BOX HV | N33: 1 | O33: A0072821 | Q33: incl
L34: 4*HV2600 | N34: 4 | O34: A0070783 | P34: 4 | Q34: A0072822
K35: 13 | L35: BMS BOX HV | N35: 1 | O35: A0072821 | Q35: incl
L36: 5*HV2600 | N36: 5 | O36: A0070783 | P36: 5 | Q36: A0072822 | S36: 1 | T36: A0074727
K37: 15.6 | L37: BMS BOX HV | N37: 1 | O37: A0072821 | Q37: incl
L38: 6*HV2600 | N38: 6 | O38: A0070783 | P38: 6 | Q38: A0072822 | S38: 1 | T38: A0074727
K39: 18.2 | L39: BMS BOX HV | N39: 1 | O39: A0072821 | Q39: incl
L40: 7*HV2600 | N40: 7 | O40: A0070783 | P40: 7 | Q40: A0072822 | S40: 1 | T40: A0074727
K41: 20.8 | L41: BMS BOX HV | N41: 1 | O41: A0072821 | Q41: incl
L42: 8*HV2600 | N42: 8 | O42: A0070783 | P42: 8 | Q42: A0072822 | S42: 1 | T42: A0074727
C44: H1-4.6-E1 | E44: A0075258 | G44: CT meetklem | I44: LAN | K44: 5.2 | L44: BMS BOX HV | N44: 1 | O44: A0072821 | Q44: incl
G45: WIFI | I45: A0070788 | L45: 2*HV2600 | N45: 2 | O45: A0070783 | P45: 2 | Q45: A0072822
K46: 7.8 | L46: BMS BOX HV | N46: 1 | O46: A0072821 | Q46: incl
L47: 3*HV2600 | N47: 3 | O47: A0070783 | P47: 3 | Q47: A0072822
K48: 10.4 | L48: BMS BOX HV | N48: 1 | O48: A0072821 | Q48: incl
L49: 4*HV2600 | N49: 4 | O49: A0070783 | P49: 4 | Q49: A0072822
K50: 13 | L50: BMS BOX HV | N50: 1 | O50: A0072821 | Q50: incl
L51: 5*HV2600 | N51: 5 | O51: A0070783 | P51: 5 | Q51: A0072822 | S51: 1 | T51: A0074727
K52: 15.6 | L52: BMS BOX HV | N52: 1 | O52: A0072821 | Q52: incl
L53: 6*HV2600 | N53: 6 | O53: A0070783 | P53: 6 | Q53: A0072822 | S53: 1 | T53: A0074727
K54: 18.2 | L54: BMS BOX HV | N54: 1 | O54: A0072821 | Q54: incl
L55: 7*HV2600 | N55: 7 | O55: A0070783 | P55: 7 | Q55: A0072822 | S55: 1 | T55: A0074727
K56: 20.8 | L56: BMS BOX HV | N56: 1 | O56: A0072821 | Q56: incl
L57: 8*HV2600 | N57: 8 | O57: A0070783 | P57: 8 | Q57: A0072822 | S57: 1 | T57: A0074727
C59: H1-5.0-E1 | E59: A0075212 | G59: CT meetklem | I59: LAN | K59: 5.2 | L59: BMS BOX HV | N59: 1 | O59: A0072821 | Q59: incl
G60: WIFI | I60: A0070788 | L60: 2*HV2600 | N60: 2 | O60: A0070783 | P60: 2 | Q60: A0072822
K61: 7.8 | L61: BMS BOX HV | N61: 1 | O61: A0072821 | Q61: incl
L62: 3*HV2600 | N62: 3 | O62: A0070783 | P62: 3 | Q62: A0072822
K63: 10.4 | L63: BMS BOX HV | N63: 1 | O63: A0072821 | Q63: incl
L64: 4*HV2600 | N64: 4 | O64: A0070783 | P64: 4 | Q64: A0072822
K65: 13 | L65: BMS BOX HV | N65: 1 | O65: A0072821 | Q65: incl
L66: 5*HV2600 | N66: 5 | O66: A0070783 | P66: 5 | Q66: A0072822 | S66: 1 | T66: A0074727
K67: 15.6 | L67: BMS BOX HV | N67: 1 | O67: A0072821 | Q67: incl
L68: 6*HV2600 | N68: 6 | O68: A0070783 | P68: 6 | Q68: A0072822 | S68: 1 | T68: A0074727
K69: 18.2 | L69: BMS BOX HV | N69: 1 | O69: A0072821 | Q69: incl
L70: 7*HV2600 | N70: 7 | O70: A0070783 | P70: 7 | Q70: A0072822 | S70: 1 | T70: A0074727
K71: 20.8 | L71: BMS BOX HV | N71: 1 | O71: A0072821 | Q71: incl
L72: 8*HV2600 | N72: 8 | O72: A0070783 | P72: 8 | Q72: A0072822 | S72: 1 | T72: A0074727

Sheet hyb1cub
C2: Hybride omvormer/mono-fasig net/Cubes batterijen
C11: Omvormer | E11: Artikel nr | G11: Incl | I11: optie | K11: kWh | L11: Batterij | N11: aantal | P11: Artikel
C13: H1-3.0-E | E13: A0073149 | G13: CT meetklem | I13: LAN | K13: 8 | L13: CM4100 | N13: 1 | P13: A0072823
G14: WIFI | I14: A0070788 | L14: 1*CS4100 | N14: 1 | P14: A0072824
K15: 12 | L15: CM4100 | N15: 1 | P15: A0072823
L16: 2*CS4100 | N16: 2 | P16: A0072824
K17: 16 | L17: CM4100 | N17: 1 | P17: A0072823
L18: 3*CS4100 | N18: 3 | P18: A0072824
K19: 20 | L19: CM4100 | N19: 1 | P19: A0072823
L20: 4*CS4100 | N20: 4 | P20: A0072824
K21: 24 | L21: CM4100 | N21: 1 | P21: A0072823
L22: 5*CS4100 | N22: 5 | P22: A0072824
K23: 28 | L23: CM4100 | N23: 1 | P23: A0072823
L24: 6*CS4100 | N24: 6 | P24: A0072824
C26: H1-3.7-E | E26: A0073150 | G26: CT meetklem | I26: LAN | K26: 8 | L26: CM4100 | N26: 1 | P26: A0072823
G27: WIFI | I27: A0070788 | L27: 1*CS4100 | N27: 1 | P27: A0072824
K28: 12 | L28: CM4100 | N28: 1 | P28: A0072823
L29: 2*CS4100 | N29: 2 | P29: A0072824
K30: 16 | L30: CM4100 | N30: 1 | P30: A0072823
L31: 3*CS4100 | N31: 3 | P31: A0072824
K32: 20 | L32: CM4100 | N32: 1 | P32: A0072823
L33: 4*CS4100 | N33: 4 | P33: A0072824
K34: 24 | L34: CM4100 | N34: 1 | P34: A0072823
L35: 5*CS4100 | N35: 5 | P35: A0072824
K36: 28 | L36: CM4100 | N36: 1 | P36: A0072823
L37: 6*CS4100 | N37: 6 | P37: A0072824
C39: H1-4.6-E1 | E39: A0075258 | G39: CT meetklem | I39: LAN | K39: 8 | L39: CM4100 | N39: 1 | P39: A0072823
G40: WIFI | I40: A0070788 | L40: 1*CS4100 | N40: 1 | P40: A0072824
K41: 12 | L41: CM4100 | N41: 1 | P41: A0072823
L42: 2*CS4100 | N42: 2 | P42: A0072824
K43: 16 | L43: CM4100 | N43: 1 | P43: A0072823
L44: 3*CS4100 | N44: 3 | P44: A0072824
K45: 20 | L45: CM4100 | N45: 1 | P45: A0072823
L46: 4*CS4100 | N46: 4 | P46: A0072824
K47: 24 | L47: CM4100 | N47: 1 | P47: A0072823
L48: 5*CS4100 | N48: 5 | P48: A0072824
K49: 28 | L49: CM4100 | N49: 1 | P49: A0072823
L50: 6*CS4100 | N50: 6 | P50: A0072824
C52: H1-5.0-E1 | E52: A0075212 | G52: CT meetklem | I52: LAN | K52: 8 | L52: CM4100 | N52: 1 | P52: A0072823
G53: WIFI | I53: A0070788 | L53: 1*CS4100 | N53: 1 | P53: A0072824
K54: 12 | L54: CM4100 | N54: 1 | P54: A0072823
L55: 2*CS4100 | N55: 2 | P55: A0072824
K56: 16 | L56: CM4100 | N56: 1 | P56: A0072823
L57: 3*CS4100 | N57: 3 | P57: A0072824
K58: 20 | L58: CM4100 | N58: 1 | P58: A0072823
L59: 4*CS4100 | N59: 4 | P59: A0072824
K60: 24 | L60: CM4100 | N60: 1 | P60: A0072823
L61: 5*CS4100 | N61: 5 | P61: A0072824
K62: 28 | L62: CM4100 | N62: 1 | P62: A0072823
L63: 6*CS4100 | N63: 6 | P63: A0072824

Sheet Hyb1AIO
C2: Hybride omvormer/mono-fase/batterijen
C19: all-in One | E19: artikel nr | G19: Incl | I19: optie | K19: kWh | L19: Batterijen | N19: Aantal | O19: Artikel
C21: AIO-H1-3.0 | E21: A0073032 | G21: WIFI 2.0 | I21: LAN | K21: 5.2 | L21: 2*HV2600 | N21: 2 | O21: A0070783
G22: CT meetklem | I22: A0070788 | K22: 7.8 | L22: 3*HV2600 | N22: 3 | O22: A0070783
K23: 10.4 | L23: 4*HV2600 | N23: 4 | O23: A0070783
C25: AIO-H1-3.7 | E25: A0073033 | G25: WIFI 2.0 | I25: LAN | K25: 5.2 | L25: 2*HV2600 | N25: 2 | O25: A0070783
G26: CT meetklem | I26: A0070788 | K26: 7.8 | L26: 3*HV2600 | N26: 3 | O26: A0070783
K27: 10.4 | L27: 4*HV2600 | N27: 4 | O27: A0070783
C29: AIO-H1-4.6E | E29: A0073034 | G29: WIFI 2.0 | I29: LAN | K29: 5.2 | L29: 2*HV2600 | N29: 2 | O29: A0070783
G30: CT meetklem | I30: A0070788 | K30: 7.8 | L30: 3*HV2600 | N30: 3 | O30: A0070783
K31: 10.4 | L31: 4*HV2600 | N31: 4 | O31: A0070783
C33: AIO-H1-5.0E | E33: A0073035 | G33: WIFI 2.0 | I33: LAN | K33: 5.2 | L33: 2*HV2600 | N33: 2 | O33: A0070783
G34: CT meetklem | I34: A0070788 | K34: 7.8 | L34: 3*HV2600 | N34: 3 | O34: A0070783
K35: 10.4 | L35: 4*HV2600 | N35: 4 | O35: A0070783

Sheet Hyb3
C2: Hybride omvormer/drie fase/

Sheet Hyb3mod
C2: Hybride omvormer/drie-fase/module batterijen
L4: BMS BOX | O4: HV2600
C11: Omvormer | E11: Artikel nr | G11: Incl | I11: optie | K11: kWh | L11: Batterij | M11: kWh | N11: aantal | P11: artikel | Q11: aantal | R11: Bracket set | T11: aantal | U11: Extended DC Cable set
U12: For second stack
C13: H3-5.0-E | E13: A0073153 | G13: Inline meter RS485 | I13: LAN | K13: 10.4 | L13: BMS BOX HV | N13: 1 | P13: A0072821 | R13: incl
G14: WIFI | I14: A0070788 | L14: 4*HV2600 | M14: 10.4 | N14: 4 | P14: A0070783 | Q14: 4 | R14: A0072822
K15: 13 | L15: BMS BOX HV | N15: 1 | P15: A0072821 | R15: incl
L16: 5*HV2600 | M16: 13 | N16: 5 | P16: A0070783 | Q16: 5 | R16: A0072822 | T16: 1 | U16: A0074727
K17: 15.6 | L17: BMS BOX HV | N17: 1 | P17: A0072821 | R17: incl
L18: 6*HV2600 | M18: 15.6 | N18: 6 | P18: A0070783 | Q18: 6 | R18: A0072822 | T18: 1 | U18: A0074727
K19: 18.2 | L19: BMS BOX HV | N19: 1 | P19: A0072821 | R19: incl
L20: 7*HV2600 | M20: 18.2 | N20: 7 | P20: A0070783 | Q20: 7 | R20: A0072822 | T20: 1 | U20: A0074727
K21: 20.8 | L21: BMS BOX HV | N21: 1 | P21: A0072821 | R21: incl
L22: 8*HV2600 | M22: 20.8 | N22: 8 | P22: A0070783 | Q22: 8 | R22: A0072822 | T22: 1 | U22: A0074727
C24: H3-6.0-E | E24: A0073155 | G24: Inline meter RS485 | I24: LAN | K24: 10.4 | L24: BMS BOX HV | N24: 1 | P24: A0072821 | R24: incl
G25: WIFI | I25: A0070788 | L25: 4*HV2600 | M25: 10.4 | N25: 4 | P25: A0070783 | Q25: 4 | R25: A0072822
K26: 13 | L26: BMS BOX HV | N26: 1 | P26: A0072821 | R26: incl
L27: 5*HV2600 | M27: 13 | N27: 5 | P27: A0070783 | Q27: 5 | R27: A0072822 | T27: 1 | U27: A0074727
K28: 15.6 | L28: BMS BOX HV | N28: 1 | P28: A0072821 | R28: incl
L29: 6*HV2600 | M29: 15.6 | N29: 6 | P29: A0070783 | Q29: 6 | R29: A0072822 | T29: 1 | U29: A0074727
K30: 18.2 | L30: BMS BOX HV | N30: 1 | P30: A0072821 | R30: incl
L31: 7*HV2600 | M31: 18.2 | N31: 7 | P31: A0070783 | Q31: 7 | R31: A0072822 | T31: 1 | U31: A0074727
K32: 20.8 | L32: BMS BOX HV | N32: 1 | P32: A0072821 | R32: incl
L33: 8*HV2600 | M33: 20.8 | N33: 8 | P33: A0070783 | Q33: 8 | R33: A0072822 | T33: 1 | U33: A0074727
C35: H3-8.0-E | E35: A0073156 | G35: Inline meter RS485 | I35: LAN | K35: 10.4 | L35: BMS BOX HV | N35: 1 | P35: A0072821 | R35: incl
G36: WIFI | I36: A0070788 | L36: 4*HV2600 | M36: 10.4 | N36: 4 | P36: A0070783 | Q36: 4 | R36: A0072822
K37: 13 | L37: BMS BOX HV | N37: 1 | P37: A0072821 | R37: incl
L38: 5*HV2600 | M38: 13 | N38: 5 | P38: A0070783 | Q38: 5 | R38: A0072822 | T38: 1 | U38: A0074727
K39: 15.6 | L39: BMS BOX HV | N39: 1 | P39: A0072821 | R39: incl
L40: 6*HV2600 | M40: 15.6 | N40: 6 | P40: A0070783 | Q40: 6 | R40: A0072822 | T40: 1 | U40: A0074727
K41: 18.2 | L41: BMS BOX HV | N41: 1 | P41: A0072821 | R41: incl
L42: 7*HV2600 | M42: 18.2 | N42: 7 | P42: A0070783 | Q42: 7 | R42: A0072822 | T42: 1 | U42: A0074727
K43: 20.8 | L43: BMS BOX HV | N43: 1 | P43: A0072821 | R43: incl
L44: 8*HV2600 | M44: 20.8 | N44: 8 | P44: A0070783 | Q44: 8 | R44: A0072822 | T44: 1 | U44: A0074727
B46: >10kW | C46: H3-11.0-E | E46: A0072967 | G46: Inline meter RS485 | I46: LAN | K46: 10.4 | L46: BMS BOX HV | N46: 1 | P46: A0072821 | R46: incl
G47: WIFI | I47: A0070788 | L47: 4*HV2600 | M47: 10.4 | N47: 4 | P47: A0070783 | Q47: 4 | R47: A0072822
K48: 13 | L48: BMS BOX HV | N48: 1 | P48: A0072821 | R48: incl
L49: 5*HV2600 | M49: 13 | N49: 5 | P49: A0070783 | Q49: 5 | R49: A0072822 | T49: 1 | U49: A0074727
K50: 15.6 | L50: BMS BOX HV | N50: 1 | P50: A0072821 | R50: incl
L51: 6*HV2600 | M51: 15.6 | N51: 6 | P51: A0070783 | Q51: 6 | R51: A0072822 | T51: 1 | U51: A0074727
K52: 18.2 | L52: BMS BOX HV | N52: 1 | P52: A0072821 | R52: incl
L53: 7*HV2600 | M53: 18.2 | N53: 7 | P53: A0070783 | Q53: 7 | R53: A0072822 | T53: 1 | U53: A0074727
K54: 20.8 | L54: BMS BOX HV | N54: 1 | P54: A0072821 | R54: incl
L55: 8*HV2600 | M55: 20.8 | N55: 8 | P55: A0070783 | Q55: 8 | R55: A0072822 | T55: 1 | U55: A0074727
C57: H3-12.0-E | E57: A0073157 | G57: Inline meter RS485 | I57: LAN | K57: 10.4 | L57: BMS BOX HV | N57: 1 | P57: A0072821 | R57: incl
G58: WIFI | I58: A0070788 | L58: 4*HV2600 | M58: 10.4 | N58: 4 | P58: A0070783 | Q58: 4 | R58: A0072822
K59: 13 | L59: BMS BOX HV | N59: 1 | P59: A0072821 | R59: incl
L60: 5*HV2600 | M60: 13 | N60: 5 | P60: A0070783 | Q60: 5 | R60: A0072822 | T60: 1 | U60: A0074727
K61: 15.6 | L61: BMS BOX HV | N61: 1 | P61: A0072821 | R61: incl
L62: 6*HV2600 | M62: 15.6 | N62: 6 | P62: A0070783 | Q62: 6 | R62: A0072822 | T62: 1 | U62: A0074727
K63: 18.2 | L63: BMS BOX HV | N63: 1 | P63: A0072821 | R63: incl
L64: 7*HV2600 | M64: 18.2 | N64: 7 | P64: A0070783 | Q64: 7 | R64: A0072822 | T64: 1 | U64: A0074727
K65: 20.8 | L65: BMS BOX HV | N65: 1 | P65: A0072821 | R65: incl
L66: 8*HV2600 | M66: 20.8 | N66: 8 | P66: A0070783 | Q66: 8 | R66: A0072822 | T66: 1 | U66: A0074727

Sheet hyb3cub
C2: Hybride omvormer/drie-fase/Cubes batterijen
C11: Omvormer | E11: Artikel nr | G11: Incl | I11: optie | K11: kWh | L11: Batterij | N11: aantal | P11: Artikel nr
C13: H3-5.0-E | E13: A0073153 | G13: Inline meter RS485 | I13: LAN | K13: 12 | L13: CM4100 | N13: 1 | P13: A0072823
G14: WIFI | I14: A0070788 | L14: 2*CS4100 | N14: 2 | P14: A0072824
K15: 16 | L15: CM4100 | N15: 1 | P15: A0072823
L16: 3*CS4100 | N16: 3 | P16: A0072824
K17: 20 | L17: CM4100 | N17: 1 | P17: A0072823
L18: 4*CS4100 | N18: 4 | P18: A0072824
K19: 24 | L19: CM4100 | N19: 1 | P19: A0072823
L20: 5*CS4100 | N20: 5 | P20: A0072824
K21: 28 | L21: CM4100 | N21: 1 | P21: A0072823
L22: 6*CS4100 | N22: 6 | P22: A0072824
C24: H3-6.0-E | E24: A0073155 | G24: Inline meter RS485 | I24: LAN | K24: 12 | L24: CM4100 | N24: 1 | P24: A0072823
G25: WIFI | I25: A0070788 | L25: 2*CS4100 | N25: 2 | P25: A0072824
K26: 16 | L26: CM4100 | N26: 1 | P26: A0072823
L27: 3*CS4100 | N27: 3 | P27: A0072824
K28: 20 | L28: CM4100 | N28: 1 | P28: A0072823
L29: 4*CS4100 | N29: 4 | P29: A0072824
K30: 24 | L30: CM4100 | N30: 1 | P30: A0072823
L31: 5*CS4100 | N31: 5 | P31: A0072824
K32: 28 | L32: CM4100 | N32: 1 | P32: A0072823
L33: 6*CS4100 | N33: 6 | P33: A0072824
C35: H3-8.0-E | E35: A0073156 | G35: Inline meter RS485 | I35: LAN | K35: 12 | L35: CM4100 | N35: 1 | P35: A0072823
G36: WIFI | I36: A0070788 | L36: 2*CS4100 | N36: 2 | P36: A0072824
K37: 16 | L37: CM4100 | N37: 1 | P37: A0072823
L38: 3*CS4100 | N38: 3 | P38: A0072824
K39: 20 | L39: CM4100 | N39: 1 | P39: A0072823
L40: 4*CS4100 | N40: 4 | P40: A0072824
K41: 24 | L41: CM4100 | N41: 1 | P41: A0072823
L42: 5*CS4100 | N42: 5 | P42: A0072824
K43: 28 | L43: CM4100 | N43: 1 | P43: A0072823
L44: 6*CS4100 | N44: 6 | P44: A0072824
B46: >10kW | C46: H3-11.0-E | E46: A0072967 | G46: Inline meter RS485 | I46: LAN | K46: 12 | L46: CM4100 | N46: 1 | P46: A0072823
G47: WIFI | I47: A0070788 | L47: 2*CS4100 | N47: 2 | P47: A0072824
K48: 16 | L48: CM4100 | N48: 1 | P48: A0072823
L49: 3*CS4100 | N49: 3 | P49: A0072824
K50: 20 | L50: CM4100 | N50: 1 | P50: A0072823
L51: 4*CS4100 | N51: 4 | P51: A0072824
K52: 24 | L52: CM4100 | N52: 1 | P52: A0072823
L53: 5*CS4100 | N53: 5 | P53: A0072824
K54: 28 | L54: CM4100 | N54: 1 | P54: A0072823
L55: 6*CS4100 | N55: 6 | P55: A0072824
C57: H3-12.0-E | E57: A0073157 | G57: Inline meter RS485 | I57: LAN | K57: 12 | L57: CM4100 | N57: 1 | P57: A0072823
G58: WIFI | I58: A0070788 | L58: 2*CS4100 | N58: 2 | P58: A0072824
K59: 16 | L59: CM4100 | N59: 1 | P59: A0072823
L60: 3*CS4100 | N60: 3 | P60: A0072824
K61: 20 | L61: CM4100 | N61: 1 | P61: A0072823
L62: 4*CS4100 | N62: 4 | P62: A0072824
K63: 24 | L63: CM4100 | N63: 1 | P63: A0072823
L64: 5*CS4100 | N64: 5 | P64: A0072824
K65: 28 | L65: CM4100 | N65: 1 | P65: A0072823
L66: 6*CS4100 | N66: 6 | P66: A0072824

Sheet Hyb3AIO
C2: Hybride omvormer/drie-fase/batterijen
C19: all-in One | E19: Artikel nr | G19: Incl | I19: optie | K19: kWh | L19: Batterijen | N19: aantal | O19: Artikel
C22: AIO-H3-5.0 | E22: A0073036 | G22: WIFI 3.0 | I22: LAN | K22: 10.4 | L22: 4*HV2600 | N22: 4 | O22: A0070783
G23: Inline meter RS485 | I23: A0070788
C25: AIO-H3-6.0 | E25: A0073037 | G25: WIFI 3.0 | I25: LAN | K25: 10.4 | L25: 4*HV2600 | N25: 4 | O25: A0070783
G26: Inline meter RS485 | I26: A0070788
C28: AIO-H3-8.0 | E28: A0073038 | G28: WIFI 3.0 | I28: LAN | K28: 10.4 | L28: 4*HV2600 | N28: 4 | O28: A0070783
G29: Inline meter RS485 | I29: A0070788
B31: >10kW | C31: AIO-H3-11.0 | E31: A0073039 | G31: WIFI 3.0 | I31: LAN | K31: 10.4 | L31: 4*HV2600 | N31: 4 | O31: A0070783
G32: Inline meter RS485 | I32: A0070788

Sheet retro
C2: Retrofit batterij/

Sheet retro1
C2: Retrofit batterij/mono fase/

Sheet retro1mod
C2: Retrofit/mono-fase/module batterijen
L4: BMS BOX | O4: HV2600
C12: Omvormer | E12: Artikel nr | G12: Incl | I12: optie | K12: kWh | L12: Batterij | M12: kWh | N12: aantal | P12: artikel | Q12: aantal | R12: Bracket set | T12: aantal | U12: Extended DC Cable set
U13: For second stack
C14: AC1-3.0-E | E14: A0073145 | G14: CT meetklem | I14: LAN | K14: 5.2 | L14: BMS BOX HV | N14: 1 | P14: A0072821 | R14: incl
G15: WIFI | I15: A0070788 | L15: 2*HV2600 | M15: 5.2 | N15: 2 | P15: A0070783 | Q15: 2 | R15: A0072822
K16: 7.8 | L16: BMS BOX HV | N16: 1 | P16: A0072821 | R16: incl
L17: 3*HV2600 | M17: 7.8 | N17: 3 | P17: A0070783 | Q17: 3 | R17: A0072822
K18: 10.4 | L18: BMS BOX HV | N18: 1 | P18: A0072821 | R18: incl
L19: 4*HV2600 | M19: 10.4 | N19: 4 | P19: A0070783 | Q19: 4 | R19: A0072822
K20: 13 | L20: BMS BOX HV | N20: 1 | P20: A0072821 | R20: incl
L21: 5*HV2600 | M21: 13 | N21: 5 | P21: A0070783 | Q21: 5 | R21: A0072822 | T21: 1 | U21: A0074727
K22: 15.6 | L22: BMS BOX HV | N22: 1 | P22: A0072821 | R22: incl
L23: 6*HV2600 | M23: 15.6 | N23: 6 | P23: A0070783 | Q23: 6 | R23: A0072822 | T23: 1 | U23: A0074727
K24: 18.2 | L24: BMS BOX HV | N24: 1 | P24: A0072821 | R24: incl
L25: 7*HV2600 | M25: 18.2 | N25: 7 | P25: A0070783 | Q25: 7 | R25: A0072822 | T25: 1 | U25: A0074727
K26: 20.8 | L26: BMS BOX HV | N26: 1 | P26: A0072821 | R26: incl
L27: 8*HV2600 | M27: 20.8 | N27: 8 | P27: A0070783 | Q27: 8 | R27: A0072822 | T27: 1 | U27: A0074727
C29: AC1-3.7-E | E29: A0073146 | G29: CT meetklem | I29: LAN | K29: 5.2 | L29: BMS BOX HV | N29: 1 | P29: A0072821 | R29: incl
G30: WIFI | I30: A0070788 | L30: 2*HV2600 | M30: 5.2 | N30: 2 | P30: A0070783 | Q30: 2 | R30: A0072822
K31: 7.8 | L31: BMS BOX HV | N31: 1 | P31: A0072821 | R31: incl
L32: 3*HV2600 | M32: 7.8 | N32: 3 | P32: A0070783 | Q32: 3 | R32: A0072822
K33: 10.4 | L33: BMS BOX HV | N33: 1 | P33: A0072821 | R33: incl
L34: 4*HV2600 | M34: 10.4 | N34: 4 | P34: A0070783 | Q34: 4 | R34: A0072822
K35: 13 | L35: BMS BOX HV | N35: 1 | P35: A0072821 | R35: incl
L36: 5*HV2600 | M36: 13 | N36: 5 | P36: A0070783 | Q36: 5 | R36: A0072822 | T36: 1 | U36: A0074727
K37: 15.6 | L37: BMS BOX HV | N37: 1 | P37: A0072821 | R37: incl
L38: 6*HV2600 | M38: 15.6 | N38: 6 | P38: A0070783 | Q38: 6 | R38: A0072822 | T38: 1 | U38: A0074727
K39: 18.2 | L39: BMS BOX HV | N39: 1 | P39: A0072821 | R39: incl
L40: 7*HV2600 | M40: 18.2 | N40: 7 | P40: A0070783 | Q40: 7 | R40: A0072822 | T40: 1 | U40: A0074727
K41: 20.8 | L41: BMS BOX HV | N41: 1 | P41: A0072821 | R41: incl
L42: 8*HV2600 | M42: 20.8 | N42: 8 | P42: A0070783 | Q42: 8 | R42: A0072822 | T42: 1 | U42: A0074727
C44: AC1-4.6-E1 | E44: A0075256 | G44: CT meetklem | I44: LAN | K44: 5.2 | L44: BMS BOX HV | N44: 1 | P44: A0072821 | R44: incl
G45: WIFI | I45: A0070788 | L45: 2*HV2600 | M45: 5.2 | N45: 2 | P45: A0070783 | Q45: 2 | R45: A0072822
K46: 7.8 | L46: BMS BOX HV | N46: 1 | P46: A0072821 | R46: incl
L47: 3*HV2600 | M47: 7.8 | N47: 3 | P47: A0070783 | Q47: 3 | R47: A0072822
K48: 10.4 | L48: BMS BOX HV | N48: 1 | P48: A0072821 | R48: incl
L49: 4*HV2600 | M49: 10.4 | N49: 4 | P49: A0070783 | Q49: 4 | R49: A0072822
K50: 13 | L50: BMS BOX HV | N50: 1 | P50: A0072821 | R50: incl
L51: 5*HV2600 | M51: 13 | N51: 5 | P51: A0070783 | Q51: 5 | R51: A0072822 | T51: 1 | U51: A0074727
K52: 15.6 | L52: BMS BOX HV | N52: 1 | P52: A0072821 | R52: incl
L53: 6*HV2600 | M53: 15.6 | N53: 6 | P53: A0070783 | Q53: 6 | R53: A0072822 | T53: 1 | U53: A0074727
K54: 18.2 | L54: BMS BOX HV | N54: 1 | P54: A0072821 | R54: incl
L55: 7*HV2600 | M55: 18.2 | N55: 7 | P55: A0070783 | Q55: 7 | R55: A0072822 | T55: 1 | U55: A0074727
K56: 20.8 | L56: BMS BOX HV | N56: 1 | P56: A0072821 | R56: incl
L57: 8*HV2600 | M57: 20.8 | N57: 8 | P57: A0070783 | Q57: 8 | R57: A0072822 | T57: 1 | U57: A0074727
C59: AC1-5.0-E1 | E59: A0075257 | G59: CT meetklem | I59: LAN | K59: 5.2 | L59: BMS BOX HV | N59: 1 | P59: A0072821 | R59: incl
G60: WIFI | I60: A0070788 | L60: 2*HV2600 | M60: 5.2 | N60: 2 | P60: A0070783 | Q60: 2 | R60: A0072822
K61: 7.8 | L61: BMS BOX HV | N61: 1 | P61: A0072821 | R61: incl
L62: 3*HV2600 | M62: 7.8 | N62: 3 | P62: A0070783 | Q62: 3 | R62: A0072822
K63: 10.4 | L63: BMS BOX HV | N63: 1 | P63: A0072821 | R63: incl
L64: 4*HV2600 | M64: 10.4 | N64: 4 | P64: A0070783 | Q64: 4 | R64: A0072822
K65: 13 | L65: BMS BOX HV | N65: 1 | P65: A0072821 | R65: incl
L66: 5*HV2600 | M66: 13 | N66: 5 | P66: A0070783 | Q66: 5 | R66: A0072822 | T66: 1 | U66: A0074727
K67: 15.6 | L67: BMS BOX HV | N67: 1 | P67: A0072821 | R67: incl
L68: 6*HV2600 | M68: 15.6 | N68: 6 | P68: A0070783 | Q68: 6 | R68: A0072822 | T68: 1 | U68: A0074727
K69: 18.2 | L69: BMS BOX HV | N69: 1 | P69: A0072821 | R69: incl
L70: 7*HV2600 | M70: 18.2 | N70: 7 | P70: A0070783 | Q70: 7 | R70: A0072822 | T70: 1 | U70: A0074727
K71: 20.8 | L71: BMS BOX HV | N71: 1 | P71: A0072821 | R71: incl
L72: 8*HV2600 | M72: 20.8 | N72: 8 | P72: A0070783 | Q72: 8 | R72: A0072822 | T72: 1 | U72: A0074727

Sheet retro1cub
C2: Retro omvormer/mono-fase/Cubes batterijen
C11: Omvormer | E11: Artikel nr | G11: Incl | I11: optie | K11: kWh | L11: Batterij | N11: aantal | P11: Artikel nr
C13: AC1-3.0-E | E13: A0073145 | G13: CT meetklem | I13: LAN | K13: 8 | L13: CM4100 | N13: 1 | P13: A0072823
G14: WIFI | I14: A0070788 | L14: 1*CS4100 | N14: 1 | P14: A0072824
K15: 12 | L15: CM4100 | N15: 1 | P15: A0072823
L16: 2*CS4100 | N16: 2 | P16: A0072824
K17: 16 | L17: CM4100 | N17: 1 | P17: A0072823
L18: 3*CS4100 | N18: 3 | P18: A0072824
K19: 20 | L19: CM4100 | N19: 1 | P19: A0072823
L20: 4*CS4100 | N20: 4 | P20: A0072824
K21: 24 | L21: CM4100 | N21: 1 | P21: A0072823
L22: 5*CS4100 | N22: 5 | P22: A0072824
K23: 28 | L23: CM4100 | N23: 1 | P23: A0072823
L24: 6*CS4100 | N24: 6 | P24: A0072824
C26: AC1-3.7-E | E26: A0073146 | G26: CT meetklem | I26: LAN | K26: 8 | L26: CM4100 | N26: 1 | P26: A0072823
G27: WIFI | I27: A0070788 | L27: 1*CS4100 | N27: 1 | P27: A0072824
K28: 12 | L28: CM4100 | N28: 1 | P28: A0072823
L29: 2*CS4100 | N29: 2 | P29: A0072824
K30: 16 | L30: CM4100 | N30: 1 | P30: A0072823
L31: 3*CS4100 | N31: 3 | P31: A0072824
K32: 20 | L32: CM4100 | N32: 1 | P32: A0072823
L33: 4*CS4100 | N33: 4 | P33: A0072824
K34: 24 | L34: CM4100 | N34: 1 | P34: A0072823
L35: 5*CS4100 | N35: 5 | P35: A0072824
K36: 28 | L36: CM4100 | N36: 1 | P36: A0072823
L37: 6*CS4100 | N37: 6 | P37: A0072824
C39: AC1-4.6-E1 | E39: A0075256 | G39: CT meetklem | I39: LAN | K39: 8 | L39: CM4100 | N39: 1 | P39: A0072823
G40: WIFI | I40: A0070788 | L40: 1*CS4100 | N40: 1 | P40: A0072824
K41: 12 | L41: CM4100 | N41: 1 | P41: A0072823
L42: 2*CS4100 | N42: 2 | P42: A0072824
K43: 16 | L43: CM4100 | N43: 1 | P43: A0072823
L44: 3*CS4100 | N44: 3 | P44: A0072824
K45: 20 | L45: CM4100 | N45: 1 | P45: A0072823
L46: 4*CS4100 | N46: 4 | P46: A0072824
K47: 24 | L47: CM4100 | N47: 1 | P47: A0072823
L48: 5*CS4100 | N48: 5 | P48: A0072824
K49: 28 | L49: CM4100 | N49: 1 | P49: A0072823
L50: 6*CS4100 | N50: 6 | P50: A0072824
C52: AC1-5.0-E1 | E52: A0075257 | G52: CT meetklem | I52: LAN | K52: 8 | L52: CM4100 | N52: 1 | P52: A0072823
G53: WIFI | I53: A0070788 | L53: 1*CS4100 | N53: 1 | P53: A0072824
K54: 12 | L54: CM4100 | N54: 1 | P54: A0072823
L55: 2*CS4100 | N55: 2 | P55: A0072824
K56: 16 | L56: CM4100 | N56: 1 | P56: A0072823
L57: 3*CS4100 | N57: 3 | P57: A0072824
K58: 20 | L58: CM4100 | N58: 1 | P58: A0072823
L59: 4*CS4100 | N59: 4 | P59: A0072824
K60: 24 | L60: CM4100 | N60: 1 | P60: A0072823
L61: 5*CS4100 | N61: 5 | P61: A0072824
K62: 28 | L62: CM4100 | N62: 1 | P62: A0072823
L63: 6*CS4100 | N63: 6 | P63: A0072824

Sheet retro1AIO
C2: Retrofit/mono fase/batterijen
C19: All-in One | F19: Artikel nr | H19: Incl | J19: optie | L19: kWh | M19: Batterijen | O19: Aantal | P19: Artikel
C22: AIO-AC1-3.0 | F22: A0073028 | H22: WIFI 2.0 | J22: LAN | L22: 5.2 | M22: 2*HV2600 | O22: 2 | P22: A0070783
H23: CT meetklem | J23: A0070788 | L23: 7.8 | M23: 3*HV2600 | O23: 3 | P23: A0070783
L24: 10.4 | M24: 4*HV2600 | O24: 4 | P24: A0070783
C26: AIO-AC1-3.7 | F26: A0073029 | H26: WIFI 2.0 | J26: LAN | L26: 5.2 | M26: 2*HV2600 | O26: 2 | P26: A0070783
H27: CT meetklem | J27: A0070788 | L27: 7.8 | M27: 3*HV2600 | O27: 3 | P27: A0070783
L28: 10.4 | M28: 4*HV2600 | O28: 4 | P28: A0070783
C30: AIO-AC1-4.6E | F30: A0073030 | H30: WIFI 2.0 | J30: LAN | L30: 5.2 | M30: 2*HV2600 | O30: 2 | P30: A0070783
H31: CT meetklem | J31: A0070788 | L31: 7.8 | M31: 3*HV2600 | O31: 3 | P31: A0070783
L32: 10.4 | M32: 4*HV2600 | O32: 4 | P32: A0070783
C34: AIO-AC1-5.0E | F34: A0073031 | H34: WIFI 2.0 | J34: LAN | L34: 5.2 | M34: 2*HV2600 | O34: 2 | P34: A0070783
H35: CT meetklem | J35: A0070788 | L35: 7.8 | M35: 3*HV2600 | O35: 3 | P35: A0070783
L36: 10.4 | M36: 4*HV2600 | O36: 4 | P36: A0070783
